{"text_format":"2","workbook":"xlsx","n_sheets":1,"sheets":["Annex IV - Price Schedule Form"],"not_rendered":{"charts":0,"images":0,"macros":0,"external_links":0,"defined_names":0,"comments":0,"pivot_tables":0},"unopened":[],"bounds":{"document_bytes":16777216,"sheet_cells":100000,"run_cost":"one","rows_first":2000,"rows_last":500,"rows_between":2000,"halvings":0,"cell_chars":16384,"cell_head_chars":4096},"cells_cut":0,"cells_raw":0,"read":"whole","date_system":"1900"}

{"sheet":"Annex IV - Price Schedule Form","index":0,"n_rows":64,"n_cols":7,"rows_kept":64,"cut":false,"hidden":false,"merged":[[14,0,14,1],[14,2,14,6],[53,5,53,6],[54,5,54,6],[21,0,21,1],[21,2,21,6],[15,0,15,1],[15,2,15,6],[16,0,16,1],[16,2,16,6],[17,0,17,1],[17,2,17,6],[18,0,18,1],[18,2,18,6],[19,0,19,1],[11,0,11,1],[11,2,11,6],[12,0,12,1],[13,0,13,1],[12,2,13,6],[20,0,20,1],[19,2,20,6],[31,5,31,6],[22,0,22,1],[22,2,22,6],[23,0,23,1],[23,2,23,6],[24,0,25,0],[25,5,25,6],[26,5,26,6],[27,5,27,6],[28,5,28,6],[29,5,29,6],[30,5,30,6],[43,5,43,6],[32,5,32,6],[33,5,33,6],[34,5,34,6],[35,5,35,6],[36,5,36,6],[37,5,37,6],[38,5,38,6],[39,5,39,6],[40,5,40,6],[41,5,41,6],[42,5,42,6],[55,0,55,4],[55,5,55,6],[44,5,44,6],[45,5,45,6],[46,5,46,6],[47,5,47,6],[48,5,48,6],[49,5,49,6],[58,5,58,6],[50,5,50,6],[51,5,51,6],[52,5,52,6],[63,1,63,6],[6,1,6,6],[9,1,9,6],[0,0,0,6],[1,0,1,6],[3,0,4,6],[59,0,59,4],[59,5,59,6],[24,1,25,1],[24,2,25,2],[24,3,25,3],[56,0,56,4],[56,5,56,6],[57,0,57,4],[57,5,57,6],[58,0,58,4]]}
["ANNEX IV – Price Schedule Form  "]
["(Editable MS Excel Format)"]
[]
["The Price Schedule prepared by the Bidder must provide a detailed cost breakdown for each item."]
[]
[]
["1.","Technical descriptions for each proposed item must provide sufficient detail to allow the Purchaser to determine compliance of Bid with specifications as per UNESCO’s Requirements and Technical Specifications of this ITB. "]
["2.","Estimated weight/volume of the consignment must be part of the documentation submitted."]
["3.","All prices/rates quoted must be exclusive of all taxes, since UNESCO is exempt from taxes."]
["4.","The format shown may be used in preparing the Price Schedule. The format uses a specific structure which may or may not be applicable but are indicated to serve as examples."]
[]
["Name of Bidder"]
["Delivery terms",null,"DDP (Annex II. No. 4.)"]
["Please refer to Bid Data Sheet"]
["FOB/FCA point "]
["Delivery time to FCA/FOB point"]
["Delivery time to final destination"]
["Approximate total volume (m3)"]
["Approximate total gross weight (kg)"]
["Mode of transport"]
["Please refer to Bid Data Sheet"]
["No & type of containers (if applicable) Specify 20ft or 40ft"]
["Freight per container (if applicable)"]
["LOT #: ",null,"(Please type the lot number)"]
["Item","Description \n(Insert equipment description)","Qty \n(Insert qty)","Unit \n(Insert piece or set)","Currency","u","(USD)"]
[{"$nulls":4},"Unit Price FOB/FCA","Total Price FOB/FCA"]
[1,{"$nulls":4},{"$f":"E27*C27","v":0}]
[2,{"$nulls":4},{"$f":"E28*C28","v":0}]
[3,{"$nulls":4},0]
[4,{"$nulls":4},0]
[5,{"$nulls":4},0]
[6,{"$nulls":4},0]
[7,{"$nulls":4},0]
[8,{"$nulls":4},0]
[9,{"$nulls":4},0]
[10,{"$nulls":4},0]
[11,{"$nulls":4},0]
[12,{"$nulls":4},0]
[13,{"$nulls":4},0]
[14,{"$nulls":4},0]
[15,{"$nulls":4},0]
[16,{"$nulls":4},0]
[17,{"$nulls":4},0]
[18,{"$nulls":4},0]
[19,{"$nulls":4},0]
[20,{"$nulls":4},0]
[21,{"$nulls":4},0]
[22,{"$nulls":4},0]
[23,{"$nulls":4},0]
[24,{"$nulls":4},0]
[25,{"$nulls":4},0]
[26,{"$nulls":4},0]
[27,{"$nulls":4},0]
[28,{"$nulls":4},{"$f":"E54*C54","v":0}]
[29,{"$nulls":4},0]
["GRAND TOTAL FOB/FCA",{"$nulls":4},{"$f":"SUM(F27:G55)","v":0}]
["FREIGHT CHARGES",{"$nulls":4},0]
["INSTALLATION COST (IF APPLICABLE)",{"$nulls":4},0]
["INSURANCE (IF APPLICABLE)",{"$nulls":4},0]
["GRAND TOTAL ",{"$nulls":4},{"$f":"SUM(F56:G59)","v":0}]
[]
["·       Note: In case of discrepancy between unit price and total, the unit price shall prevail."]
[]
["·       Note: In case of discrepancy between unit price and total, the unit price shall prevail.","Please refer to ANNEX VIII – General Terms and Conditions for Goods and Related Services, Article 4: Tax  Exemption and UNESCO will provide the supporting documents."]